[Event "Metz op 31th"]
[Site "Metz"]
[Date "2013.04.24"]
[Round "4"]
[White "Dgebuadze, Alexandre"]
[Black "Bellahcene, Bilel"]
[Result "1-0"]
[ECO "C03"]
[WhiteElo "2515"]
[BlackElo "2367"]
[Annotator "Metz Alekhine/Primel,D"]
[PlyCount "61"]
[EventDate "2013.04.20"]
[EventType "swiss"]
[EventRounds "9"]
[EventCountry "FRA"]
[SourceTitle "EXT 2016"]
[Source "ChessBase"]
[SourceDate "2015.10.08"]
[SourceVersion "1"]
[SourceVersionDate "2015.10.08"]
[SourceQuality "1"]
[TimeControl "40/5400:1800+30"]
[WhiteClock "1:30:00"]
[BlackClock "1:30:00"]

1. e4 e6 2. d4 d5 3. Nd2 Be7 4. c3 {79 le GMI n'avait pas prévu cette
variante Be7 et il commence à réfléchir} c5 5. dxc5 $1 {Profitant du fait
que le Bf8 a déjà joué.} (5. e5 Nc6 6. Bd3 cxd4 7. cxd4 Qb6 8. Ndf3 Bd7 9.
Ne2 Nb4 10. Bb1 Bb5 11. O-O (11. Nc3) 11... Qa6 12. Re1 Nd3 $36) 5... Nf6 (5...
Bxc5 6. Bd3 Nf6 7. Qe2 Qc7 (7... Nc6 8. Ngf3 O-O) 8. Ngf3 O-O 9. O-O Nbd7 10.
Bc2 b6 11. exd5 exd5 12. Nb3 Re8 13. Qd3 a5 14. Nxc5 bxc5 15. Re1 Rxe1+ 16.
Nxe1 Ba6 17. Qd1 Re8 18. Nd3 Qb6 19. h3 h6 20. Rb1 Bc4 21. a4 Ne4 22. Bd2 Bxd3
23. Bxd3 Nxf2 24. Qf3 Nxd3 25. Qxd3 c4+ 26. Qd4 Re2 27. Rd1 Qxb2 28. Qxd5 Qc2
29. Bf4 Rxg2+ 30. Kh1 Re2 31. Rg1 Qd3 32. Qxd3 cxd3 33. Bxh6 d2 34. Rxg7+ Kh8
35. Rg1 {McShane,L (2697)-Rapport,R (2676) Germany 2014 0-1}) 6. exd5 Qxd5 {
la position rappelle un peu les thèmes de l'Alapin} 7. Ngf3 {74} (7. b4 $5 a5
8. Ngf3 Nc6 9. Bc4 $14 Qh5 {Sermek,D (2595)-Reefat,B (2450) Dhaka New White
Plus op 2002 (3) 1-0}) 7... Bxc5 {88} (7... Qxc5 8. Bd3 O-O 9. Qe2 $14) 8. Bc4
Qd7 $146 {[%csl Rc8] Une nouveauté assez douteuse} (8... Qh5 $142 9. Qe2 Nc6
10. Nf1 Bd6 11. Ng3 Bxg3 $11 {Orlov,A (2518)-Poetsch,H (2395) BL2-West 1011
2010 (5.3) 1/2}) 9. Qe2 O-O 10. Nb3 {71} Bd6 11. Bg5 Qc7 12. Nbd4 a6 {70} (
12... Nbd7 13. Nb5) 13. Bxf6 gxf6 14. Bd3 $14 {[%csl Rg8,Rh7]} Bf4 $1 {[%cal
Gf4h6] Ramène une pièce en défense} 15. g3 {[%emt 0:00:32]} Bh6 {63} 16. Qe4
f5 17. Qh4 $36 Bg7 18. g4 $1 {Profitant du fait que les Blancs n'ont pas
encore roqué} Qd8 19. gxf5 Qxh4 20. Nxh4 Bxd4 21. Rg1+ $1 Kh8 (21... Bg7 22.
f6) 22. cxd4 exf5 23. O-O-O $16 Rd8 24. Bc4 $32 b5 $2 {Accentue le retard de
développement} (24... Be6 $142 25. Bd3 (25. Bxe6 fxe6 {[%csl Rd4]} 26. d5 exd5
27. Nxf5 Nc6 $11) 25... Nc6 $132) 25. Bxf7 {[%csl Rh8]} Ra7 26. Bb3 Rad7 27.
Rg5 Nc6 28. Rdg1 $40 {[%csl Rg8]} Ne7 29. Nf3 Ng6 30. Ne5 Rc7+ 31. Kb1 1-0

[Event "Rohde op 12th"]
[Site "Sautron"]
[Date "2012.10.28"]
[Round "2"]
[White "Oleksienko, Mikhailo"]
[Black "Ider, Borya"]
[Result "1-0"]
[ECO "C03"]
[WhiteElo "2539"]
[BlackElo "2394"]
[Annotator "RR"]
[PlyCount "95"]
[EventDate "2012.10.27"]
[EventType "swiss"]
[EventRounds "9"]
[EventCountry "FRA"]
[SourceTitle "EXT 2014"]
[Source "ChessBase"]
[SourceDate "2013.11.20"]
[SourceVersion "1"]
[SourceVersionDate "2013.11.20"]
[SourceQuality "1"]
[TimeControl "40/5400+30:1800+30"]
[WhiteClock "1:30:00"]
[BlackClock "1:30:00"]

1. e4 {[%emt 0:00:00]} e6 {[%emt 0:00:00]} 2. d4 {[%emt 0:00:00]} d5 {[%emt 0:
00:00]} 3. Nd2 {[%emt 0:00:00]} h6 $5 {[%emt 0:00:00] Une ligne secondaire
dont l'idée revient au GMI BRICARD qui aime sortir des sentiers battus de la
théorie. Elle semble tout а fait jouable des Top GMI comme SHORT ou MOROZEVICH
l'ont essayé avec des bons résultats.} 4. Ngf3 {[%emt 0:01:58] Le GMI est un
peu surpris puisqu'il ne répond pas а tempo} Nf6 {[%emt 0:00:00]} 5. Bd3 {
[%emt 0:00:13]} ({RR} 5. e5 Nfd7 6. c3 c5 7. a3 Be7 8. Bd3 a5 9. b3 b6 10. Bb5
Na6 11. O-O Nc7 12. Be2 a4 13. b4 Ba6 14. Bb2 O-O 15. Bxa6 Rxa6 16. Qe2 cxb4
17. cxb4 b5 18. Ne1 Nb6 19. Nd3 Nc4 {Vallejo Pons,F (2663)-Morozevich,A (2732)/
Monte Carlo 2004/CBM 099 ext/0-1 (69)}) 5... c5 {[%emt 0:00:05]} 6. exd5 {
[%emt 0:00:17]} (6. c3 cxd4 7. cxd4 dxe4 8. Nxe4) 6... Nxd5 {[%emt 0:02:43]} 7.
Nb3 {[%emt 0:07:06]} (7. O-O Nc6 8. Nb3 $14 {Yang,K (2409)-Cao Sang (2547)
Asia-ch Mashhad 2011 (1) 0-1}) (7. Ne4 $5 cxd4 8. Nxd4 e5) 7... cxd4 $146 {
[%emt 0:03:04]} ({RR} 7... Qc7 8. dxc5 Nd7 9. O-O Nxc5 10. Bb5+ Nd7 11. Re1 Be7
12. Ne5 O-O 13. Bxd7 Bxd7 14. c4 Nf6 15. Bf4 Qc8 {1/2-1/2 Kranzl,P (2279)
-Reschun,S (2246)/Austria 2009/EXT 2010}) 8. Nbxd4 {[%emt 0:00:05]} Bc5 {
[%emt 0:00:52]} 9. O-O {[%emt 0:02:22]} O-O {[%emt 0:00:59]} 10. a3 {[%emt 0:
06:26][%cal Gc2c4] Pas forcément indispensable et les Blancs pouvaient ausssi
jouer directement c4 sans craindre la réponse Nb4} (10. Qe2 $5 {[%cal Gf1d1]})
(10. c4 Nb4 11. Bb1 N8c6 12. Nb3 Be7 13. Qe2 {[%cal Gf1d1]}) 10... Bb6 {
[%emt 0:05:32]} (10... e5 $1 {[%cal Gc8g4] Libérer le mauvais Bc8 est pourtant
un coup candidat qui doit libérer les Noirs.} 11. Nb3 Bd6 $11) 11. c4 {[%emt 0:
07:06]} Nf6 {[%emt 0:01:23]} 12. Re1 $14 {[%emt 0:07:27][%csl Rc8]} Kh8 $6 {
[%emt 0:17:52] Trop lent} (12... Bd7 $142 {[%cal Gb8c6]}) 13. Bc2 {[%emt 0:03:
37]} Qc7 {[%emt 0:00:18]} 14. Qe2 {[%emt 0:02:38]} Rd8 {[%emt 0:02:20]} 15. Nb5
{[%emt 0:03:02]} (15. Be3 a6 (15... e5 16. Nb5)) 15... Qe7 {[%emt 0:00:22]} 16.
b4 {[%emt 0:02:23]} a6 {[%emt 0:12:27]} 17. Nc3 {[%emt 0:00:31]} Nc6 {[%emt 0:
01:06]} 18. Bb2 {[%emt 0:02:57]} a5 $6 {[%emt 0:23:52]} 19. b5 {[%emt 0:08:22]}
(19. Na4 $1 Bd4 (19... Bc7 20. b5) 20. Nxd4 Nxd4 21. Bxd4 Rxd4 22. Nb6 Rb8 23.
Rad1 $32) 19... Nd4 {[%emt 0:00:17]} 20. Nxd4 {[%emt 0:00:08]} Bxd4 {[%emt 0:
00:05]} 21. Rad1 {[%emt 0:00:15]} e5 {[%emt 0:03:26]} 22. Nd5 {[%emt 0:04:25]}
(22. Rxd4 $5 Rxd4 23. Nd5 $36 Rxd5 24. cxd5 Bd7 25. a4 Rc8 26. Bxe5 {[%csl Gc2,
Ge5]} Nxd5 27. Bb3 {[%csl Rd5,Re7][%cal Gb3d5,Ge5g7]}) 22... Bg4 {[%emt 0:02:
20]} 23. Qxg4 {[%emt 0:23:40] Conduit а des grosses complications} (23. Qd3
Rxd5 $1 24. cxd5 Bxb2) (23. Nxe7 Bxe2 24. Rxe2 Bxb2) (23. Qf1 {[%csl Rf1]} Bxd1
(23... Qe6 24. Rxd4) 24. Nxe7 Bxc2 $13 25. Bxd4 Rxd4 26. Rxe5 Rad8 (26... Rd1
27. Re1)) 23... Bxf2+ $1 {[%emt 0:06:55]} 24. Kf1 {[%emt 0:00:10]} Rxd5 $1 {
[%emt 0:00:05][%csl Rg4]} 25. Qe2 {[%emt 0:00:44]} Rxd1 {[%emt 0:00:23]} 26.
Rxd1 {[%emt 0:00:10]} Bc5 {[%emt 0:00:32][%csl Ra3]} 27. Qxe5 {[%emt 0:00:17]}
Qxe5 {[%emt 0:00:26]} 28. Bxe5 {[%emt 0:00:05]} Ng4 {[%emt 0:00:10]} 29. Bf4 {
[%emt 0:00:25]} Be3 {[%emt 0:01:20] (=)} (29... g5 $11 {[%cal Gh8g7]}) 30. h3 {
[%emt 0:06:52]} Bxf4 {[%emt 0:00:08]} 31. hxg4 {[%emt 0:00:02]} b6 {[%emt 0:00:
33]} 32. c5 $1 {[%emt 0:00:26][%csl Gb5]} bxc5 {[%emt 0:00:40]} 33. b6 {
[%emt 0:00:28]} g6 {[%emt 0:08:35]} 34. b7 {[%emt 0:00:25]} Re8 {[%emt 0:02:01]
} 35. Kf2 {[%emt 0:04:14]} Kg7 {[%emt 0:02:13]} 36. Kf3 {[%emt 0:00:44]} g5 {
[%emt 0:00:29]} 37. Be4 $1 {[%emt 0:01:23]} c4 {[%emt 0:00:26]} 38. g3 {
[%emt 0:00:56]} Be5 $6 {[%emt 0:00:05]} (38... Bb8) 39. Rd5 $18 {[%emt 0:00:34]
} Kf6 {[%emt 0:02:47]} (39... a4 40. Rxe5) 40. Rxa5 {[%emt 0:00:00]} c3 {
[%emt 0:00:00]} 41. Rc5 {[%emt 0:01:47]} Ke6 {[%emt 0:01:44]} 42. Rc8 {[%emt 0:
00:35]} Ke7 {[%emt 0:01:28]} 43. a4 {[%emt 0:00:55]} Rd8 {[%emt 0:00:24]} 44.
a5 {[%emt 0:00:26]} Rd2 {[%emt 0:01:07]} 45. a6 {[%emt 0:04:11]} Ra2 {[%emt 0:
00:36]} 46. Bd3 {[%emt 0:01:11]} c2 {[%emt 0:00:09]} 47. Rxc2 {[%emt 0:00:35]}
Rxc2 {[%emt 0:00:07]} 48. a7 {[%emt 0:00:12]} 1-0